bitfinex/quotes_ETHUSD_20250217
["timestamp","ask_amount","ask_price","bid_price","bid_amount"]
[1739777503472,3.9873,2692.3,2691.7,3.71512]
[1739777503675,3.9873,2692.3,2691.8,3.71496]
[1739777503676,0.81288978,2692.2,2691.8,3.71496]
[1739777503870,0.81288978,2692.2,2691.6,7.43033]
[1739777504273,0.273,2692.1,2691.7,3.71503]
[1739777504463,0.273,2692.1,2691.8,3.71496]
[1739777504663,0.273,2692.1,2691.3,0.794]
[1739777504866,0.273,2692.1,2691.6,3.71514]
[1739777505063,0.273,2692.1,2692.0,3.71471]
[1739777505471,0.273,2692.1,2691.8,7.42977]
[1739777505773,0.273,2692.1,2691.4,3.71547]
[1739777505774,0.273,2692.1,2692.0,3.71471]
[1739777506276,0.273,2692.2,2692.1,3.71445]
[1739777506650,3.71389,2692.6,2692.1,3.71445]
[1739777506859,1.35854878,2692.5,2692.1,3.71445]
[1739777507056,0.273,2692.5,2692.1,3.71445]
[1739777508058,3.98704,2692.5,2691.9,3.71474]
[1739777508260,3.71451,2692.2,2691.6,3.71524]
[1739777508459,3.71466,2692.1,2691.6,3.71524]
[1739777508679,0.742917,2692.0,2691.6,3.71524]
[1739777508884,3.71434,2692.3,2691.7,3.715]
[1739777509750,3.71444,2692.2,2691.7,3.715]
[1739777510870,9.48159784,2692.4,2691.8,3.71498]
[1739777511500,9.48159784,2692.4,2690.9,3.0]
[1739777511501,9.48159784,2692.4,2691.1,0.8019]
[1739777511720,9.48159784,2692.4,2692.0,3.71458]
[1739777512024,9.48159784,2692.4,2691.8,3.71493]
[1739777512025,13.19575784,2692.4,2691.8,3.71493]
[1739777512223,13.19575784,2692.4,2691.8,7.42978]
[1739777512383,3.7143,2692.3,2691.8,3.71485]
[1739777512729,9.48159784,2692.4,2691.9,3.71477]
[1739777512868,1.34686278,2692.3,2691.2,0.451796]
[1739777513071,3.71475,2692.0,2691.5,3.71537]
[1739777513296,3.71459,2692.1,2691.5,3.71537]
[1739777513513,3.7148,2692.0,2691.5,3.71537]
[1739777514178,7.85618784,2692.1,2691.5,3.71537]
[1739777514525,4.14159784,2691.8,2691.1,3.71585]
[1739777514819,4.14159784,2691.8,2691.2,3.71581]
[1739777514820,3.98715,2691.7,2691.2,3.71581]
[1739777515220,9.32715,2691.7,2691.0,0.8019]
[1739777515426,9.32715,2691.7,2691.2,3.71574]
[1739777515602,1.34687478,2691.6,2691.2,3.71574]
[1739777515776,1.34687478,2691.6,2691.0,0.8019]
[1739777515970,1.34687478,2691.6,2691.0,4.5179]
[1739777516464,3.71558,2691.4,2690.7,0.8019]
[1739777516673,3.71558,2691.4,2690.6,3.71655]
[1739777516674,7.85741784,2691.2,2690.6,3.71655]
[1739777516871,7.85741784,2691.2,2690.6,7.43312]
[1739777517073,7.85741784,2691.2,2690.7,3.7165]
[1739777517393,13.19741784,2691.2,2690.6,3.71655]
[1739777518289,9.48159784,2691.2,2690.8,3.71632]
[1739777518487,10.8798914,2691.2,2690.8,3.71632]
[1739777519911,10.8798914,2691.2,2690.6,3.71654]
[1739777520077,14.5957914,2691.2,2690.6,7.4331]
[1739777520283,10.8798914,2691.2,2690.8,3.71626]
[1739777520586,10.8798914,2691.2,2691.0,3.71608]
[1739777520587,6.73829356,2691.2,2691.0,3.71608]
[1739777520798,5.34,2691.2,2691.0,3.71608]
[1739777521011,5.34,2691.2,2690.6,3.71654]
[1739777521227,9.05584,2691.2,2690.6,3.71654]
[1739777521381,9.48159784,2691.2,2690.6,3.71654]
[1739777521580,3.7162,2691.0,2690.4,4.51868]
[1739777521915,0.272,2690.9,2690.5,3.71668]
[1739777522110,0.272,2690.9,2690.8,3.71636]
[1739777522316,0.272,2690.9,2690.7,3.71649]
[1739777523243,5.34,2691.2,2690.4,0.8019]
[1739777523513,5.34,2691.2,2691.1,3.71595]
[1739777525080,5.34,2691.2,2690.7,0.8302]
[1739777525308,5.34,2691.2,2691.0,3.71599]
[1739777525490,5.34,2691.2,2691.1,3.71595]
[1739777526380,5.34,2691.2,2691.0,3.71599]
[1739777526575,5.613,2691.4,2690.8,3.71635]
[1739777526892,9.32861,2691.4,2690.9,3.71613]
[1739777527116,5.613,2691.4,2691.1,3.71588]
[1739777527275,6.95998778,2691.4,2690.7,0.8302]
[1739777527614,5.613,2691.4,2691.2,3.71581]
[1739777528414,5.613,2691.4,2691.0,3.71599]
[1739777528610,5.613,2691.4,2691.1,3.71594]
[1739777528812,9.32853,2691.4,2690.8,3.71623]
[1739777528993,3.71596,2691.1,2690.6,3.71654]
[1739777531013,7.43202,2691.1,2690.6,3.71654]
[1739777531218,3.71596,2691.1,2690.6,3.71654]
[1739777531443,6.71531,2691.6,2690.6,3.71654]
[1739777531444,5.34,2693.1,2691.5,0.8302]
[1739777531589,5.34,2693.1,2691.4,3.71548]
[1739777531590,0.554,2693.0,2692.8,3.7136]
[1739777531931,0.279,2693.2,2692.8,3.71348]
[1739777532075,0.279,2693.2,2692.7,3.71372]
[1739777532961,0.279,2693.2,2692.8,3.7135]
[1739777533116,0.279,2693.2,2692.9,3.71346]
[1739777534300,0.279,2693.2,2692.9,3.71335]
[1739777534839,1.33675351,2693.5,2693.1,3.71319]
[1739777535046,5.34,2693.7,2692.7,0.8242]
[1739777535338,0.279,2693.6,2693.5,3.71264]
[1739777535664,0.279,2693.7,2692.7,0.8242]
[1739777535930,3.71306,2693.2,2692.5,3.71398]
[1739777536356,2.0,2693.4,2692.4,3.71404]
[1739777536536,0.281,2693.1,2692.6,3.71384]
[1739777537211,0.281,2693.5,2693.1,3.7131]
[1739777537609,0.281,2693.5,2692.9,3.71343]
[1739777537931,0.281,2693.5,2692.3,4.53845]
[1739777537932,3.71305,2693.3,2692.3,4.53845]
[1739777538315,3.71328,2693.1,2692.3,4.53845]
[1739777538515,0.371328,2693.0,2692.4,3.71415]
[1739777538831,4.084718,2693.0,2692.3,4.53845]
[1739777539003,3.0,2692.7,2691.7,3.71511]
[1739777539202,4.13741862,2692.5,2691.9,3.71474]
[1739777539738,3.71418,2692.4,2691.8,3.71488]
[1739777539945,9.19877848,2692.5,2691.9,3.71472]
[1739777540238,5.48474848,2692.5,2691.9,3.71472]
[1739777540437,9.19879848,2692.5,2691.9,3.71472]
[1739777540633,5.48474848,2692.5,2691.6,3.71519]
[1739777540938,4.23408674,2692.4,2691.7,3.71501]
[1739777541327,4.23408674,2692.4,2691.8,3.71497]
[1739777543208,3.71431,2692.3,2691.8,3.71497]
[1739777543512,3.71452,2692.2,2691.6,3.71519]
[1739777544051,5.34,2692.3,2691.7,3.71504]
[1739777544356,5.34,2692.3,2691.1,0.8242]
[1739777544357,3.71467,2692.1,2691.1,0.8242]
[1739777544668,3.71467,2692.1,2691.2,3.71581]
[1739777544669,5.34,2692.0,2691.2,3.71581]
[1739777544810,5.34,2692.0,2691.5,3.7153]
[1739777545014,6.68732986,2692.0,2691.5,3.7153]
[1739777545215,10.40203986,2692.0,2691.4,3.71545]
[1739777545727,3.71493,2691.9,2691.2,3.71569]
[1739777545933,3.99599,2691.8,2691.2,3.71569]
[1739777546258,0.281,2691.8,2691.3,3.71564]
[1739777546701,0.281,2691.8,2691.4,3.71553]
[1739777546900,0.281,2691.8,2691.5,3.71532]
[1739777547138,0.281,2691.8,2691.2,3.71581]
[1739777547317,0.281,2691.8,2691.6,3.7152]
[1739777547849,0.281,2691.8,2691.7,3.71512]
[1739777548007,5.34,2692.0,2691.9,3.71484]
[1739777548338,5.62,2692.0,2691.9,3.71484]
[1739777549432,5.62,2692.0,2691.8,3.71497]
[1739777549627,5.62,2692.0,2691.9,3.71484]
[1739777549801,5.62,2692.0,2691.8,3.71497]
[1739777550341,9.89676,2692.0,2691.4,3.71544]
[1739777550869,3.71486,2691.9,2691.2,3.71575]
[1739777551005,3.71531,2691.6,2691.0,3.716]
[1739777551368,3.7156,2691.4,2690.6,3.71655]
[1739777551505,3.7156,2691.4,2690.8,3.71635]
[1739777551707,3.71571,2691.3,2690.7,3.71647]
[1739777551931,0.281,2691.2,2690.7,3.71647]
[1739777552130,0.281,2691.2,2690.9,3.71622]
[1739777552707,0.281,2691.2,2690.7,3.71649]
[1739777553209,0.281,2691.2,2690.7,7.43288]
[1739777553808,3.99681,2691.2,2690.7,3.71639]
[1739777554004,3.99681,2691.2,2690.5,3.71667]
[1739777554209,3.99681,2691.2,2690.4,0.8031]
[1739777554502,0.281,2691.2,2690.8,3.71628]
[1739777555046,0.281,2691.2,2691.0,3.71606]
[1739777555247,0.281,2691.2,2690.7,3.71649]
[1739777555453,0.281,2691.2,2690.8,3.71633]
[1739777555750,3.9969,2691.2,2690.6,7.43311]
[1739777556045,4.5589,2691.2,2690.6,7.4331]
[1739777556247,4.5589,2691.2,2690.6,3.71655]
[1739777556927,3.71606,2691.1,2690.6,3.71655]
[1739777557112,9.8989,2691.2,2690.6,3.71655]
[1739777557451,3.71604,2691.1,2690.6,3.71655]
[1739777558152,3.71619,2691.0,2690.2,3.71711]
[1739777558352,3.71644,2690.8,2690.3,3.71696]
[1739777558652,3.71673,2690.6,2690.0,3.71741]
[1739777559322,9.05673,2690.6,2689.8,0.8031]
[1739777559545,9.05673,2690.6,2689.9,3.71749]
[1739777559718,12.77346,2690.6,2690.0,3.71733]
[1739777559918,9.05673,2690.6,2690.0,7.4347]
[1739777560252,9.05673,2690.6,2690.0,3.71733]
[1739777560432,9.05673,2690.6,2690.1,3.71726]
[1739777561031,9.05673,2690.6,2690.1,3.71732]
[1739777561236,9.9338206,2690.6,2690.1,3.71732]
[1739777561420,9.9338206,2690.6,2689.9,3.71747]
[1739777561624,3.71685,2690.5,2689.7,3.71779]
[1739777561819,0.28,2690.4,2689.9,3.7176]
[1739777562024,3.71746,2690.1,2689.5,3.71813]
[1739777562218,3.71741,2690.1,2689.5,4.089863]
[1739777562635,9.05715,2690.3,2689.7,3.71779]
[1739777562844,3.71722,2690.2,2689.7,3.71779]
[1739777563268,9.05715,2690.3,2689.7,3.71779]
[1739777563468,5.34,2690.3,2689.5,0.371813]
[1739777563667,9.05715,2690.3,2689.2,0.8031]
[1739777563871,5.34,2690.3,2689.9,3.71758]
[1739777564128,5.34,2690.3,2690.0,3.71739]
[1739777564332,0.28,2690.2,2690.1,7.4345]
[1739777565328,5.34,2690.3,2690.1,3.71724]
[1739777565536,5.34,2690.6,2690.2,3.71719]
[1739777565737,0.28,2690.5,2690.1,0.371724]
[1739777565936,3.99683,2690.5,2690.0,3.71736]
[1739777566440,3.71701,2690.4,2689.9,3.71758]
[1739777567170,0.28,2690.3,2689.9,3.71758]
[1739777567365,0.28,2690.3,2690.1,3.71731]
[1739777568767,0.28,2690.3,2690.2,3.71719]
[1739777568978,0.28,2690.3,2689.8,0.7752]
[1739777569279,0.28,2690.3,2689.9,3.71757]
[1739777569569,4.768453,2690.3,2689.6,3.71793]
[1739777569869,9.05726,2690.2,2689.6,3.7179]
[1739777570292,9.05726,2690.2,2689.7,3.71781]
[1739777570463,12.77456,2690.2,2689.7,3.71781]
[1739777570637,6.8072116,2690.2,2689.7,3.71781]
[1739777570983,5.34,2690.2,2689.7,3.71781]
[1739777571439,5.34,2690.2,2689.7,3.71779]
[1739777571637,5.34,2690.2,2689.5,3.71805]
[1739777571638,9.0572,2690.2,2689.5,3.71805]
[1739777571836,9.0572,2690.2,2689.7,3.71776]
[1739777572082,9.0572,2690.2,2689.7,3.71784]
[1739777572303,5.34,2690.2,2689.8,3.71771]
[1739777573188,5.34,2690.2,2689.8,3.71765]
[1739777573488,5.34,2690.2,2689.7,3.71779]
[1739777573905,5.34,2690.2,2689.8,3.71768]
[1739777574202,5.34,2690.2,2689.5,3.71807]
[1739777574480,3.71738,2690.1,2689.6,3.71792]
[1739777574868,3.71738,2690.1,2689.6,7.43587]
[1739777575069,3.71738,2690.1,2689.7,3.71787]
[1739777575387,5.97731923,2690.2,2689.7,3.71787]
[1739777575553,5.97731923,2690.2,2689.7,3.71774]
[1739777576260,5.34,2690.2,2689.9,3.7175]
[1739777576667,9.05719,2690.2,2689.7,3.7178]
[1739777576982,3.71744,2690.1,2689.6,3.71797]
[1739777577881,5.34,2690.2,2689.8,3.71763]
[1739777578056,5.34,2690.2,2689.8,3.71772]
[1739777578258,5.34,2690.2,2689.4,0.7951]
[1739777578465,3.71735,2690.1,2689.6,3.71789]
[1739777579987,9.05735,2690.1,2689.6,3.71789]
[1739777580174,3.71748,2690.0,2689.5,3.71816]
[1739777580378,3.71748,2690.0,2689.5,3.71813]
[1739777580576,5.34,2690.1,2689.5,3.71808]
[1739777580776,5.34,2690.1,2689.7,3.7178]
[1739777580980,5.34,2690.1,2689.4,0.7951]
[1739777581179,9.05743,2690.1,2689.5,3.71802]
[1739777581359,9.05743,2690.1,2689.6,3.71797]
[1739777581864,5.34,2690.1,2689.8,3.7177]
[1739777582066,5.34,2690.1,2689.7,3.71777]
[1739777582771,5.34,2690.1,2689.8,3.71768]
[1739777582982,5.34,2690.1,2689.7,0.371777]
[1739777583183,5.34,2690.1,2689.8,7.43534]
[1739777583351,5.34,2690.1,2689.8,7.43532]
[1739777583857,5.34,2690.1,2689.8,3.71766]
[1739777584055,5.34,2690.1,2690.0,3.71747]
[1739777584468,5.34,2690.1,2689.6,3.71795]
[1739777584688,5.34,2690.1,2689.7,3.71782]
[1739777585666,5.34,2690.1,2689.6,0.451305]
[1739777585889,5.34,2690.2,2689.9,3.71752]
[1739777586086,5.34,2690.2,2689.6,0.451305]
[1739777586304,0.277,2690.1,2690.0,3.71735]
[1739777586683,0.277,2690.1,2689.9,3.71754]
[1739777588064,0.277,2690.1,2689.6,4.169225]
[1739777588265,3.71756,2690.0,2689.5,3.71804]
[1739777588464,3.9944,2690.1,2689.5,3.71816]
[1739777588666,0.277,2690.1,2689.9,3.71758]
[1739777588867,0.277,2690.1,2689.7,3.71781]
[1739777589268,0.277,2690.1,2689.6,3.71791]
[1739777589497,0.277,2690.1,2689.4,0.7951]
[1739777589798,3.99434,2690.1,2689.6,3.71792]
[1739777589969,0.277,2690.1,2689.6,3.71792]
[1739777590170,0.277,2690.1,2689.7,3.7178]
[1739777590600,0.277,2690.1,2689.8,3.71771]
[1739777590812,0.277,2690.1,2689.7,3.7178]
[1739777591176,3.71755,2690.0,2689.5,3.71807]
[1739777591589,3.9944,2690.1,2689.6,3.71791]
[1739777591793,3.71755,2690.0,2689.5,3.71807]
[1739777592396,3.7177,2689.9,2689.4,4.51339]
[1739777592702,5.617,2690.1,2689.6,3.718]
[1739777592925,5.617,2690.1,2689.5,3.71809]
[1739777593200,5.617,2690.1,2689.4,4.541375]
[1739777593201,5.617,2690.1,2689.6,3.71802]
[1739777593399,5.617,2690.1,2689.9,3.71751]
[1739777593577,5.34,2690.1,2690.0,3.71747]
[1739777593982,5.617,2690.1,2690.0,3.71747]
[1739777594369,5.617,2690.1,2690.0,4.543456]
[1739777595272,5.34,2690.1,2690.0,4.543456]
[1739777597573,5.34,2690.6,2690.5,3.71678]
[1739777597775,0.276,2690.6,2690.5,3.71678]
[1739777597998,0.276,2690.6,2690.4,3.7169]
[1739777598187,0.276,2690.6,2690.2,3.71711]
[1739777598399,0.276,2690.6,2690.4,3.71684]
[1739777599007,0.276,2690.6,2690.4,7.43364]
[1739777599304,0.276,2690.6,2690.4,3.7168]
[1739777599505,0.276,2690.6,2690.2,4.2539096]
[1739777599712,0.276,2690.6,2689.7,7.28136474]
[1739777599713,3.56353474,2690.5,2689.7,3.71788]
[1739777600003,3.71713,2690.3,2689.7,3.71775]
[1739777600231,3.71713,2690.3,2689.8,3.71772]
[1739777600435,9.05699,2690.4,2689.7,3.71775]
[1739777600631,5.34,2690.4,2689.9,3.71753]
[1739777600822,5.34,2690.4,2690.0,3.71745]
[1739777601411,3.71724,2690.2,2689.7,3.71779]
[1739777601720,8.90353474,2690.2,2688.9,0.8248]
[1739777601897,3.71782,2689.8,2689.1,3.71869]
[1739777602092,0.277,2689.7,2689.3,3.71835]
[1739777602326,10.99973474,2689.6,2689.0,3.71877]
[1739777602526,12.62162474,2689.6,2689.0,3.71877]
[1739777602728,13.18322474,2689.6,2689.0,7.43754]
[1739777602915,13.18322474,2689.6,2688.6,0.8248]
[1739777603119,3.71819,2689.5,2688.9,3.71895]
[1739777603326,13.18322474,2689.6,2689.0,3.71873]
[1739777603732,3.71816,2689.5,2688.9,3.71895]
[1739777604238,3.71816,2689.5,2688.9,3.71891]
[1739777604597,13.9266959,2689.6,2688.9,3.71891]
[1739777604802,1.42036959,2689.5,2689.0,3.71877]
[1739777605133,1.42036959,2689.5,2688.6,0.8248]
[1739777605332,1.42036959,2689.5,2689.0,3.71882]
[1739777606620,1.42036959,2689.5,2689.0,3.71874]
[1739777606814,1.42036959,2689.5,2688.6,4.54411]
[1739777606815,5.34,2689.4,2689.1,3.7186]
[1739777607024,5.34,2689.4,2689.2,3.71852]
[1739777607221,5.34,2689.4,2689.0,7.43758]
[1739777607448,5.34,2689.4,2689.0,3.71874]
[1739777608530,5.34,2689.4,2689.3,3.71843]
[1739777608705,5.616,2689.4,2689.2,3.71856]
[1739777608903,5.616,2689.4,2689.2,7.43704]
[1739777609142,5.616,2689.4,2689.3,3.71843]
[1739777612147,5.616,2689.4,2689.0,3.71882]
[1739777612148,5.616,2689.4,2689.0,3.71883]
[1739777612479,12.89784474,2689.4,2688.6,0.7961]
[1739777612801,12.89784474,2689.4,2688.9,7.43784]
[1739777612929,9.17953474,2689.4,2688.9,7.43784]
[1739777613109,9.17953474,2689.4,2688.9,3.71892]
[1739777613314,12.89784474,2689.4,2688.9,3.71891]
[1739777613609,7.28232474,2689.1,2688.5,3.71943]
[1739777613842,7.28232474,2689.1,2688.2,3.0]
[1739777614023,7.28232474,2689.1,2688.1,4.51617]
[1739777614024,12.62232474,2689.1,2688.6,3.71933]
[1739777614445,12.62232474,2689.1,2688.4,3.71955]
[1739777614446,3.71885,2689.0,2688.4,3.71955]
[1739777614652,4.66765013,2689.0,2688.5,3.71945]
[1739777615209,4.66765013,2689.0,2688.2,3.71988]
[1739777615210,3.56353474,2688.8,2688.2,3.71988]
[1739777615443,3.56353474,2688.8,2688.3,3.71978]
[1739777615444,3.56353474,2688.5,2688.3,3.71978]
[1739777615643,0.276,2688.4,2688.3,3.71978]
[1739777615854,0.276,2688.4,2688.2,3.71987]
[1739777616029,0.276,2688.4,2688.3,3.71982]
[1739777616222,0.276,2688.4,2688.0,3.72017]
[1739777616427,0.276,2688.4,2687.9,0.1473235]
[1739777616639,3.56353474,2688.2,2687.9,0.1473235]
[1739777618075,3.56353474,2688.2,2687.9,3.8676035]
[1739777618233,3.56353474,2688.2,2687.9,0.1473235]
[1739777620425,0.276,2688.1,2687.9,3.8676935]
[1739777621426,0.276,2688.1,2687.9,3.8676035]
[1739777621679,3.56353474,2688.5,2687.9,3.8676035]
[1739777621680,0.276,2688.0,2687.9,3.8676335]
[1739777621856,0.276,2688.0,2687.9,0.1473235]
[1739777622063,5.34,2688.2,2688.1,3.72009]
[1739777622381,5.34,2688.6,2687.9,0.61372685]
[1739777622529,0.276,2688.5,2688.4,3.71967]
[1739777623166,5.34,2688.6,2688.5,3.71954]
[1739777623351,5.616,2688.6,2688.5,3.71954]
[1739777624335,5.616,2688.6,2688.4,3.71968]
[1739777624574,5.616,2688.6,2687.9,0.1473235]
[1739777624575,5.616,2688.6,2688.1,3.72009]
[1739777625173,3.56353474,2688.5,2687.9,3.8676135]
[1739777625368,7.28315474,2688.5,2687.9,3.8676135]
[1739777625790,7.28315474,2688.5,2688.0,3.72014]
[1739777625791,8.90353474,2688.5,2688.0,3.72014]
[1739777625994,3.71983,2688.3,2687.9,0.1473235]
[1739777626135,5.34,2688.3,2687.9,0.1473235]
[1739777626538,3.72007,2688.2,2687.9,0.1473235]
[1739777626852,5.34,2688.3,2687.9,0.1473235]
[1739777627058,9.05984,2688.3,2687.9,0.1473235]
[1739777627291,1.28978447,2688.2,2687.9,0.1473235]
[1739777628571,5.34,2688.3,2688.1,3.72006]
[1739777628742,5.34,2688.3,2688.0,3.72015]
[1739777628941,5.34,2688.3,2688.1,3.72002]
[1739777629364,5.34,2688.3,2688.0,3.72015]
[1739777629564,9.05989,2688.3,2687.9,0.1473235]
[1739777629876,6.245989,2688.3,2687.9,0.1473235]
[1739777630277,9.965839,2688.3,2687.9,0.1473235]
[1739777630642,6.245989,2688.3,2687.9,0.1473235]
[1739777631550,6.245989,2688.3,2687.9,3.8676735]
[1739777631859,5.34,2688.3,2688.1,3.72]
[1739777632372,5.34,2688.3,2687.9,3.8676035]
[1739777632869,9.05992,2688.3,2687.9,0.1473235]
[1739777633062,5.34,2688.3,2687.9,0.1473235]
[1739777633743,5.34,2688.3,2687.9,3.8676835]
[1739777634291,6.66124212,2688.3,2687.9,0.1473235]
[1739777634502,10.38114212,2688.3,2687.9,0.1473235]
[1739777634663,14.10104212,2688.3,2687.9,0.1473235]
[1739777634838,6.66124212,2688.3,2687.9,0.1473235]
[1739777635350,5.34,2688.3,2687.9,3.8676735]
[1739777636075,5.34,2688.3,2687.9,0.1473235]
[1739777636255,9.05983,2688.3,2687.9,0.1473235]
[1739777636458,3.72007,2688.2,2687.9,0.1473235]
[1739777636855,3.72016,2688.1,2687.9,0.1473235]
[1739777637054,4.998183,2688.1,2687.9,0.1473235]
[1739777637261,1.278023,2688.1,2687.9,0.1473235]
[1739777638088,5.34,2688.3,2687.9,0.1473235]
[1739777639093,3.72003,2688.2,2687.9,0.1473235]
[1739777639592,5.34,2688.3,2687.9,0.1473235]
[1739777639752,0.275,2688.2,2688.0,3.72019]
[1739777640156,0.275,2688.2,2687.9,0.1473235]
[1739777640353,3.99496,2688.2,2687.9,0.1473235]
[1739777640697,3.72018,2688.1,2687.9,0.1473235]
[1739777641052,4.928456,2688.2,2687.9,0.1473235]
[1739777641295,3.72023,2688.0,2687.9,0.1473235]
[1739777643484,13.03623,2688.0,2687.9,0.1473235]
[1739777644675,16.03623,2688.0,2687.9,0.1473235]
[1739777644879,17.8913186,2688.0,2687.9,0.1473235]
[1739777646620,21.46116988,2688.0,2687.9,0.1473235]
[1739777649610,20.91116988,2688.0,2687.9,0.1473235]
[1739777650487,21.65520684,2688.0,2687.9,0.1473235]
[1739777651388,26.99520684,2688.0,2687.9,0.1473235]
[1739777652523,27.26920684,2688.0,2687.9,0.1473235]
[1739777654922,23.27497684,2688.0,2687.9,0.1473235]
[1739777655122,8.90985128,2688.0,2687.9,0.1473235]
[1739777655423,12.90408128,2688.0,2687.9,0.1473235]
[1739777657727,9.18385128,2688.0,2687.9,0.1473235]
[1739777657907,12.90408128,2688.0,2687.9,0.1473235]
[1739777658230,23.95779572,2688.0,2687.9,0.1473235]
[1739777660231,25.95779572,2688.0,2687.9,0.1473235]
[1739777660428,28.95779572,2688.0,2687.9,0.1473235]
[1739777660635,26.95779572,2688.0,2687.9,0.1473235]
[1739777661612,12.18285128,2688.0,2687.9,0.1473235]
[1739777661927,5.613,2688.0,2687.9,3.8676935]
[1739777663427,5.34,2688.0,2687.9,0.9280235]
[1739777663745,0.274,2688.2,2688.1,3.72008]
[1739777664044,5.34,2688.6,2688.2,4.50055]
[1739777664254,0.274,2688.5,2688.2,4.50055]
[1739777664418,0.274,2688.4,2688.2,4.50055]
[1739777665038,0.274,2688.4,2688.3,3.71982]
[1739777665747,5.34,2688.8,2688.7,3.71926]
[1739777665928,5.34,2688.8,2688.6,3.71938]
[1739777665929,0.274,2688.7,2688.6,3.71938]
[1739777666147,0.274,2688.7,2688.6,4.50008]
[1739777666461,0.274,2688.7,2688.6,0.7807]
[1739777666806,0.274,2688.7,2688.6,4.5001]
[1739777667109,0.274,2688.7,2688.6,5.32207]
[1739777667347,5.614,2688.8,2688.7,3.71926]
[1739777668003,5.34,2688.8,2688.7,3.71926]
[1739777668209,0.274,2688.9,2688.8,4.49983]
[1739777668916,3.56985128,2689.7,2688.8,0.8145]
[1739777669109,0.274,2689.6,2689.2,0.8145]
[1739777669306,3.274,2689.6,2689.2,0.8145]
[1739777669530,3.274,2689.6,2689.2,8.25153]
[1739777669740,0.274,2689.6,2689.2,4.533]
[1739777669942,0.274,2689.6,2689.2,0.8145]
[1739777670245,3.274,2689.6,2689.2,4.53295]
[1739777670606,3.274,2689.6,2689.2,0.8145]
[1739777670805,0.274,2689.5,2689.4,3.71818]
[1739777671006,0.274,2689.5,2689.3,3.71841]
[1739777671213,0.274,2689.5,2689.2,0.8145]
[1739777671663,0.274,2689.5,2689.2,4.53307]
[1739777671922,0.274,2689.5,2689.2,0.8145]
[1739777672123,0.274,2689.5,2688.7,0.8145]
[1739777672124,3.56985128,2689.4,2688.7,0.8145]
[1739777672315,3.56985128,2689.1,2688.4,0.8145]
[1739777672510,3.56985128,2689.1,2688.3,3.71974]
[1739777672511,3.56985128,2688.8,2688.3,7.43948]
[1739777672826,0.274,2688.7,2688.3,3.71974]
[1739777673224,0.274,2688.7,2688.5,3.71952]
[1739777673426,0.274,2688.7,2688.6,4.5339]
[1739777675415,3.0,2689.3,2688.9,3.71897]
[1739777675614,5.614,2689.2,2688.9,3.71897]
[1739777675921,5.614,2689.2,2688.6,4.53388]
[1739777675922,5.614,2689.2,2688.8,3.71904]
[1739777676122,9.33259,2689.2,2688.7,3.71917]
[1739777676321,10.99467713,2689.2,2688.7,3.71917]
[1739777677616,3.71873,2689.1,2688.6,4.53383]
[1739777677814,10.99467713,2689.2,2688.6,0.8145]
[1739777678020,10.99467713,2689.2,2688.5,3.71945]
[1739777678021,3.56985128,2689.1,2688.5,3.71945]
[1739777678254,0.57649747,2689.0,2688.5,3.71945]
[1739777678754,4.29542747,2689.0,2688.5,3.71944]
[1739777679058,0.57649747,2689.0,2688.6,3.7194]
[1739777679232,3.0,2689.1,2688.6,3.7194]
[1739777679554,3.0,2689.1,2688.8,3.71913]
[1739777679751,0.274,2689.0,2688.7,0.7524]
[1739777679951,0.274,2689.0,2688.5,4.47186]
[1739777680254,0.274,2689.0,2688.6,3.71932]
[1739777680857,1.507282,2689.0,2688.5,4.47186]
[1739777681058,6.847282,2689.0,2688.7,3.71921]
[1739777681226,5.614,2689.0,2688.7,3.71921]
[1739777681622,5.614,2689.0,2688.6,7.43857]
[1739777681823,5.614,2689.0,2688.6,3.71927]
[1739777682862,5.614,2689.0,2688.5,0.7524]
[1739777683022,1.233278,2688.9,2688.5,4.47193]
[1739777684123,0.274,2688.8,2688.6,3.71938]
[1739777685152,0.274,2688.8,2688.5,4.47194]
[1739777685354,0.274,2688.8,2688.5,0.7524]
[1739777687244,4.76294213,2688.4,2687.9,3.8676535]
[1739777687428,3.71984,2688.3,2687.9,0.1473235]
[1739777688031,3.0,2688.2,2687.9,0.1473235]
[1739777690368,3.0,2688.2,2687.9,3.8676835]
[1739777690549,3.0,2688.2,2687.9,0.1473235]
[1739777691387,3.0,2688.2,2687.9,3.8675935]
[1739777691530,3.0,2688.2,2687.9,0.1473235]
[1739777691730,3.0,2688.2,2687.9,3.8675735]
[1739777692085,3.0,2688.2,2687.9,0.1473235]
[1739777692531,0.273,2688.1,2687.9,0.1473235]
[1739777692943,5.613,2688.1,2687.9,0.1473235]
[1739777693388,5.613,2688.1,2688.0,3.72023]
[1739777693558,5.613,2688.1,2687.9,0.1473235]
[1739777693772,5.613,2688.1,2688.0,4.47653]
[1739777694990,5.613,2688.1,2687.9,0.1473235]
[1739777698560,5.34,2688.1,2688.0,3.72023]
[1739777698729,5.613,2688.1,2687.9,3.8676035]
[1739777698933,0.273,2688.1,2688.0,3.72023]
[1739777699433,0.273,2688.1,2687.9,0.1473235]
[1739777699953,0.273,2688.1,2688.0,3.72023]
[1739777700256,5.34,2688.4,2688.1,3.72009]
[1739777700431,0.273,2688.3,2688.2,4.55056]